[Event "FRA-ch Teams Top 16-Haute 2022"]
[Site "Chartres"]
[Date "2022.06.17"]
[Round "9.16"]
[White "Alexieva, Silvia"]
[Black "Navrotescu, Andreea"]
[Result "0-1"]
[ECO "D11"]
[WhiteElo "2219"]
[BlackElo "2318"]
[Annotator "TA"]
[PlyCount "66"]
[EventDate "2022.06.16"]
[EventType "team-tourn"]
[EventCountry "FRA"]
[SourceTitle "playchess.com"]
[Source "ChessBase"]
[SourceQuality "1"]
[TimeControl "40/5400+30:1800+30"]

{[%evp 14,66,26,20,60,47,73,26,79,60,68,49,60,31,33,44,33,41,47,48,48,48,66,58,50,17,22,14,12,0,0,-51,4,0,1,-56,-36,-76,-27,-33,-32,-95,-95,-97,-90,-108,-93,-183,-172,-181,-183,-192,-184,-185,-177]} 1. d4 {[%emt 0:00:03]} d5 {[%emt 0:01:05]} 2. Nf3 {[%emt 0:00:40]} Nf6 {[%emt 0:00:26]} 3. g3 {[%emt 0:00:54]} c6 {[%emt 0:00:24]} 4. Bg2 {[%emt 0:02:07]} Bf5 {[%emt 0:00:29]} 5. c4 {[%emt 0:03:18]} e6 {[%emt 0:01:58]} 6. Qb3 {[%emt 0:00:49]} Qc8 {[%emt 0:02:56]} 7. Nc3 {[%emt 0:01:32]} Be7 {[%emt 0:12:22]} 8. O-O {[%emt 0:04:49]} dxc4 {[%emt 0:09:03] D11: Slav Defence: 3 Nf3 sidelines and 3...Nf6 4 e3 Bg4.} 9. Qxc4 {[%emt 0:00:12]} O-O {[%emt 0:05:39]} 10. Bf4 {[%emt 0:06:19] [#]} ({White should try} 10. Nh4 $16) 10... b5 $146 {[%emt 0:09:52]} (10... Nd5 $11) ({Predecessor:} 10... Nbd7 11. Rac1 Nb6 12. Qb3 Nfd5 13. Bd2 Rd8 14. Rfe1 Nxc3 15. Bxc3 Be4 16. a4 Bd5 {1-0 (44) Mikhaylov,A (1764)-Vlasov,D (1334) Kaliningrad 2019}) 11. Qb3 $16 {[%emt 0:00:16]} a5 {[%emt 0:00:55]} 12. Rfc1 {[%emt 0:13:14][%cal Oc3b5]} Qa6 {[%emt 0:02:11]} 13. a3 {[%emt 0:03:21]} a4 {[%emt 0:02:55]} 14. Qd1 {[%emt 0:01:15]} Nbd7 {[%emt 0:01:05][%cal Bb8d7,Bd7b6,Bb6c4][%mdl 32]} 15. Nh4 {[%emt 0:08:23]} Bg4 {[%emt 0:01:11]} 16. h3 {[%emt 0:00:15]} Bh5 {[%emt 0:00:06]} 17. g4 {[%emt 0:01:39]} Bg6 {[%emt 0:02:22]} 18. Nxg6 {[%emt 0:00:05]} hxg6 {[%emt 0:00:04]} 19. e4 {[%emt 0:01:40]} Nb6 {[%emt 0:04:38]} 20. Qe2 {[%emt 0:12:04]} Rfd8 {[%emt 0:02:28]} 21. Rd1 {[%emt 0:02:12][%cal Od4d5]} Nc4 {[%emt 0:06:22]} 22. Rd3 {[%emt 0:01:09]} (22. Rab1 $11) 22... Rd7 {[%emt 0:01:58]} (22... b4 $15 23. axb4 Nxb2) 23. Rad1 $11 {[%emt 0:03:01]} Rad8 {[%emt 0:00:39]} 24. g5 {[%emt 0:06:23]} (24. Bg3 $11) 24... Nh5 $15 {[%emt 0:02:24] Pair of Knights!} 25. Bc1 {[%emt 0:00:07]} Qa7 {[%emt 0:05:17] Black is more active.} (25... Qb6 $17) 26. e5 $11 {[%emt 0:05:40]} Rxd4 {[%emt 0:05:27]} 27. Rxd4 {[%emt 0:06:44]} (27. Bxc6 $15 Rxd3 28. Rxd3 Rxd3 29. Qxd3) 27... Rxd4 $17 {[%emt 0:00:01]} 28. Rxd4 {[%emt 0:00:05]} Qxd4 {[%emt 0:00:03]} 29. Bxc6 {[%emt 0:00:08]} Nf4 $36 {[%emt 0:04:09][%mdl 2048] Black is in control.} ({Don't play} 29... Nxe5 $6 30. Bxb5 Nf4 31. Qe3 Bxg5 32. Qxd4 $11) 30. Qf3 {[%emt 0:06:05]} (30. Qg4 $17 Bxg5 31. Bxb5) 30... Bxg5 {[%emt 0:00:36] Black is clearly better.} 31. Nxb5 {[%emt 0:02:52]} Qxe5 {[%emt 0:00:48]} 32. Bxf4 {[%emt 0:00:46]} Bxf4 {[%emt 0:00:06]} 33. Nc3 {[%emt 0:00:12]} Nxb2 {[%emt 0:05:58] Weighted Error Value: White=0.21 (precise) /Black=0.14 (very precise)} 0-1

[Event "FRA-ch Teams Top 16-Haute 2022"]
[Site "Chartres"]
[Date "2022.06.17"]
[Round "9.17"]
[White "Brunner, Nicolas"]
[Black "Bacrot, Etienne"]
[Result "0-1"]
[ECO "D24"]
[WhiteElo "2454"]
[BlackElo "2638"]
[Annotator "TA"]
[PlyCount "60"]
[EventDate "2022.06.16"]
[EventType "team-tourn"]
[EventCountry "FRA"]
[SourceTitle "playchess.com"]
[Source "ChessBase"]
[SourceQuality "1"]
[TimeControl "40/5400+30:1800+30"]

{[%evp 9,60,13,52,31,42,45,50,47,37,35,48,24,38,19,36,27,24,25,40,31,66,83,79,7,9,14,8,5,15,-26,-29,-121,-120,-136,-126,-305,-263,-431,-300,-295,-259,-474,-488,-1020,-385,-602,-569,-693,-670,-29993,-29994,-29994,-29995]} 1. d4 {[%emt 0:00:02]} d5 {[%emt 0:13:49]} 2. c4 {[%emt 0:00:07]} e6 {[%emt 0:00:05]} 3. Nf3 {[%emt 0:00:04]} Nf6 {[%emt 0:00:04]} 4. Nc3 {[%emt 0:00:04]} dxc4 {[%emt 0:00:05]} 5. e4 {[%emt 0:00:19][%cal Be2e4,Be4e5][%mdl 32]} b5 {[%emt 0:00:06]} (5... Bb4 $5 {[%cal Rf6e4]}) 6. e5 {[%emt 0:00:04] D24: Queen's Gambit Accepted: 3 Nf3 Nf6 4 Nc3.} Nd5 {[%emt 0:00:06]} 7. Nxb5 {[%emt 0:00:10]} Nb6 {[%emt 0:00:11]} 8. Be2 {[%emt 0:01:08] White is slightly better.} Nc6 $1 {[%emt 0:02:01] 8...Nc6 is better than 8...Be7.} 9. Be3 {[%emt 0:00:55]} Be7 {[%emt 0:00:44]} 10. a3 {[%emt 0:00:09]} O-O {[%emt 0:02:10]} 11. Qc2 {[%emt 0:01:08]} Na5 {[%emt 0:01:21]} 12. Rd1 {[%emt 0:02:32]} Bb7 {[%emt 0:05:51]} 13. Nc3 {[%emt 0:03:38] [#]} Qd7 $146 {[%emt 0:25:27]} ({Predecessor:} 13... Nd5 14. Bd2 Nb3 15. Bxc4 Nxd2 16. Bxd5 Nxf3+ 17. Bxf3 Bxf3 18. gxf3 f6 19. f4 Qe8 {½-½ (55) Chronopoulos,A (2119)-Marcuzzo,G (2233) ICCF email 2021}) 14. h4 {[%emt 0:00:17]} f5 {[%emt 0:03:51]} 15. exf6 $1 {[%emt 0:05:22]} gxf6 {[%emt 0:00:08]} 16. Ne4 {[%emt 0:11:12]} (16. Kf1 $16) 16... Qa4 $1 $11 {[%emt 0:05:22]} 17. Qb1 {[%emt 0:02:57]} Nb3 {[%emt 0:00:15]} 18. O-O {[%emt 0:05:45]} Kh8 {[%emt 0:12:57]} 19. Rfe1 {[%emt 0:23:49]} Qc6 {[%emt 0:03:57] Against Nc5} 20. Ned2 {[%emt 0:08:54] [#]} (20. Nc3 $11) 20... Nxd2 $1 $17 {[%emt 0:03:45] Black is more active.} 21. Bxd2 {[%emt 0:00:07][%cal Od4d5]} Rg8 {[%emt 0:00:12] aiming for ...Rg4.} 22. Kh1 $2 {[%emt 0:00:41] White does not recover from this.} (22. d5 $17 Nxd5 23. Qe4) 22... Rg4 $19 {[%emt 0:01:34] Threatens to win with ...Qd5.} 23. Rg1 $2 {[%emt 0:03:57]} (23. g3) 23... Rag8 {[%emt 0:03:12][%cal Oc6f3]} 24. g3 {[%emt 0:02:51]} Bd6 {[%emt 0:05:44]} 25. Kh2 $2 {[%emt 0:04:23]} (25. Rg2 {was called for.}) 25... Qd5 {[%emt 0:00:38] [#] White must now prevent ...Qh5.} 26. Bb4 {[%emt 0:02:08]} (26. Ne5 $142 fxe5 27. Bxg4 Rxg4 28. dxe5 Qxe5 29. Kh3) 26... Re4 $2 {[%emt 0:02:15]} (26... Qh5 {( -> ...Bxf3)} 27. d5 Rxh4+ 28. Nxh4 Qxh4+ 29. Kg2 Nxd5) 27. Bf1 {[%emt 0:00:35]} (27. Rde1 $142 Rxe2 28. Rxe2 Qxf3 29. Qf1) 27... Rf4 {[%emt 0:01:22][%cal Od5f3,Be4f4,Bf4f3,Bf3f2][%mdl 32]} 28. Bxd6 {[%emt 0:03:04]} Rxf3 {[%emt 0:00:11]} 29. Bxc7 {[%emt 0:02:33]} Rxf2+ {[%emt 0:00:20]} 30. Kh3 {[%emt 0:00:04]} Qf3 {[%emt 0:01:14] Weighted Error Value: White=0.93/Black=0.30} 0-1

[Event "FRA-ch Teams Top 16-Haute 2022"]
[Site "Chartres"]
[Date "2022.06.17"]
[Round "9.18"]
[White "Ragger, Markus"]
[Black "Hamitevici, Vladimir"]
[Result "1-0"]
[ECO "B12"]
[WhiteElo "2636"]
[BlackElo "2482"]
[Annotator "TA"]
[PlyCount "41"]
[EventDate "2022.06.16"]
[EventType "team-tourn"]
[EventCountry "FRA"]
[SourceTitle "playchess.com"]
[Source "ChessBase"]
[SourceQuality "1"]
[TimeControl "40/5400+30:1800+30"]

{[%evp 11,41,10,12,-20,20,19,14,19,46,29,70,70,89,87,72,81,64,48,111,110,147,149,150,149,173,182,279,273,525,514,471,487]} 1. e4 {[%emt 0:00:01]} c6 {[%emt 0:05:50]} 2. d4 {[%emt 0:00:03]} d5 {[%emt 0:00:07]} 3. e5 {[%emt 0:00:05]} Bf5 {[%emt 0:01:06]} 4. h4 {[%emt 0:00:19]} h5 {[%emt 0:02:37]} 5. Bd3 {[%emt 0:00:20]} Bxd3 {[%emt 0:00:10]} 6. Qxd3 {[%emt 0:00:04]} e6 {[%emt 0:02:47]} 7. Bg5 {[%emt 0:00:49] B12: Caro-Kann: Advance Variation.} Qa5+ {[%emt 0:01:11]} (7... Qb6 $5 {[%cal Rb6b2]}) 8. Nd2 {[%emt 0:00:47]} Qa6 {[%emt 0:00:10]} 9. c4 {[%emt 0:00:54] The position is equal.} Nh6 {[%emt 0:03:28]} 10. Ne2 {[%emt 0:07:14] [#]} Bb4 $146 {[%emt 0:12:25]} ({Predecessor:} 10... Nf5 11. O-O Nd7 12. b3 Be7 13. Bxe7 Nxe7 14. Ng3 g6 15. Nf3 Kf8 16. Ng5 Kg7 {1-0 (35) Sevian,S (2660)-Maly,A (2371) Chess.com INT 2020}) 11. O-O {[%emt 0:20:48]} Bxd2 {[%emt 0:06:37]} 12. Qxd2 {[%emt 0:02:50]} (12. Bxd2 $6 Qxc4 13. Qxc4 dxc4 $11) 12... Qxc4 {[%emt 0:05:20]} 13. Rac1 $40 {[%emt 0:01:00][%cal Ba1c1,Bc1c3,Bc3b3][%mdl 160] White has strong attack.} Qa4 {[%emt 0:07:49]} 14. Ng3 {[%emt 0:14:33][%mdl 1024] White has compensation.} Na6 {[%emt 0:09:03]} ({Better is} 14... Nd7 $14) 15. Rc3 $16 {[%emt 0:14:39]} (15. Nxh5 $6 Nf5 16. g4 Rxh5 17. gxf5 (17. gxh5 Qxd4 18. Qxd4 Nxd4 $15) 17... Nc7 $11) 15... Qb4 {[%emt 0:10:26]} 16. Qf4 {[%emt 0:07:39] [#] Rb3 is the strong threat.} (16. Nxh5 $6 Nf5 17. a3 Qxd4 18. Nxg7+ Kd7 19. Nxf5 Qxd2 20. Bxd2 exf5 $14) 16... Qf8 {[%emt 0:12:29]} 17. Rb3 {[%emt 0:06:00] White is more active.} (17. Nxh5 Nf5 $16) 17... b6 {[%emt 0:01:31]} 18. Rc1 {[%emt 0:00:26]} (18. Nxh5 Nf5 $16) 18... Kd7 {[%emt 0:01:53]} (18... Rc8 {was worth a try.} 19. Rbc3 (19. Nxh5 Rc7 $16) (19. Ra3 Nb4 $16) 19... Nb8 20. Nxh5 Rh7) 19. Rf3 $18 {[%emt 0:02:42]} ({Resist} 19. Nxh5 $6 Rc8 20. Ra3 Nb4 21. Rxa7+ Rc7 22. Rxc7+ Kxc7 $18) 19... f6 $2 {[%emt 0:07:41] [#]} (19... Rc8 {keeps fighting.} 20. Bxh6 Rxh6 21. Qxf7+ Qe7 22. Qxe7+ (22. Nxh5 c5 $16) 22... Kxe7) 20. exf6 {[%emt 0:01:28]} gxf6 {[%emt 0:00:02]} 21. Qxf6 {[%emt 0:02:10] Weighted Error Value: White=0.04 (flawless) /Black=0.41} ({Not} 21. Bxf6 Rh7 22. Qd2 (22. Nxh5 Nf5 $11) 22... Rf7 $18) 1-0

[Event "FRA-ch Teams Top 16-Haute 2022"]
[Site "Chartres"]
[Date "2022.06.17"]
[Round "9.19"]
[White "Solodovnichenko, Yuri"]
[Black "Rodshtein, Maxim"]
[Result "1/2-1/2"]
[ECO "C15"]
[WhiteElo "2499"]
[BlackElo "2588"]
[Annotator "TA"]
[PlyCount "119"]
[EventDate "2022.06.16"]
[EventType "team-tourn"]
[EventCountry "FRA"]
[SourceTitle "playchess.com"]
[Source "ChessBase"]
[SourceQuality "1"]
[TimeControl "40/5400+30:1800+30"]

{[%evp 18,119,0,0,-3,-13,-13,-13,-13,-20,-21,-21,-16,-17,0,-10,-9,0,0,-6,0,-2,0,-19,-8,-44,-33,-62,-68,-56,-40,-34,-27,-42,-43,-52,-52,-62,-61,-60,-53,-54,-57,-57,-52,-55,-16,-67,-52,-110,-110,-125,-127,-156,-156,-177,-214,-330,-70,-52,-52,-87,-88,-159,-159,-160,-132,-115,-8,-8,-8,-159,-159,-159,-159,-159,-126,-126,-126,-126,-62,-159,-159,-159,-159,-159,-159,-159,-159,-159,-159,-159,-159,-159,-159,-159,-116,-116,-108,-116,-116,-116,-116,-116]} 1. e4 {[%emt 0:00:03]} e6 {[%emt 0:00:32]} 2. d4 {[%emt 0:00:07]} d5 {[%emt 0:00:06]} 3. Nc3 {[%emt 0:00:04]} Bb4 {[%emt 0:00:19]} 4. Nge2 {[%emt 0:00:14]} dxe4 {[%emt 0:00:33]} 5. a3 {[%emt 0:00:05]} Be7 {[%emt 0:00:12]} 6. Nxe4 {[%emt 0:00:07]} Nf6 {[%emt 0:00:28]} 7. Qd3 {[%emt 0:00:15]} Nxe4 {[%emt 0:00:42]} 8. Qxe4 {[%emt 0:00:05]} Nd7 {[%emt 0:00:06]} 9. Bf4 {[%emt 0:00:19]} Nf6 {[%emt 0:03:51]} 10. Qf3 {[%emt 0:00:06]} Bd7 {[%emt 0:06:16] C15: French: 3 Nc3 Bb4: Unusual White 4th moves.} 11. Nc3 {[%emt 0:06:35] [#]} Bc6 $146 {[%emt 0:02:02]} ({Predecessor:} 11... O-O 12. Qxb7 Rb8 13. Qxc7 Rxb2 14. Qxd8 Rxd8 15. Bd3 Bc6 16. O-O Rxd4 17. Be5 Rg4 18. g3 {½-½ (28) Nun,J (2415)-Vavra,P (2320) Czech Republic 1995}) 12. Bb5 {[%emt 0:00:13]} Bxb5 {[%emt 0:05:28] The position is equal.} 13. Nxb5 {[%emt 0:00:12]} O-O {[%emt 0:06:54]} 14. Be5 {[%emt 0:05:19]} (14. Nxc7 Rc8 15. O-O Rxc7 16. Bxc7 Qxc7 $17) (14. Qxb7 Rb8 15. Qc6 Qd5 16. Qxd5 Nxd5 $17) (14. Bxc7 $2 Qd7 15. Qe2 (15. Qxb7 $2 Rab8 $19) 15... a6 $19) 14... c6 {[%emt 0:12:37]} 15. Nc3 {[%emt 0:03:23]} Nd5 {[%emt 0:06:56]} 16. O-O {[%emt 0:05:34]} Nxc3 {[%emt 0:02:10]} 17. Qxc3 {[%emt 0:00:28]} Qd5 {[%emt 0:00:05]} 18. Rfd1 {[%emt 0:08:57]} Rfd8 {[%emt 0:04:47]} 19. Rd3 {[%emt 0:05:47]} Rd7 {[%emt 0:05:04]} 20. a4 {[%emt 0:05:12]} Rad8 {[%emt 0:02:50]} 21. Rad1 {[%emt 0:04:19]} b5 {[%emt 0:04:26]} 22. Qa5 {[%emt 0:13:38]} Qa2 {[%emt 0:08:48][%csl LRa4,LRb2]} 23. Qc3 {[%emt 0:14:28]} f6 {[%emt 0:12:45]} 24. Bf4 {[%emt 0:04:22]} bxa4 {[%emt 0:04:09]} (24... e5 {seems wilder.} 25. dxe5 Rxd3 26. cxd3 Qxa4 27. Qc1 c5) 25. Qxc6 {[%emt 0:09:14] [#]} Rxd4 $1 {[%emt 0:02:19]} 26. h3 {[%emt 0:00:40]} (26. Rxd4 Rxd4 27. Rf1 Kf7 $17) (26. h4 Rxd3) 26... Rxd3 {[%emt 0:01:01]} (26... Qxb2 27. Qxe6+ Kf8 28. Bh6 $11 (28. Re1 Qb7 $15)) 27. Rxd3 {[%emt 0:00:18]} Rxd3 {[%emt 0:03:00]} (27... Qxb2 $2 28. Rxd8+ Bf8 29. Qxe6+ Kh8 30. Rxf8#) 28. Qe8+ {[%emt 0:00:29]} Bf8 {[%emt 0:00:03]} 29. cxd3 $15 {[%emt 0:00:06][%mdl 4096] Endgame KQB-KQB} e5 $36 {[%emt 0:03:52][%mdl 2048] Black has good play.} (29... Qxb2 30. Bd6 h6 31. Qc8 $16 (31. Bxf8 Qc1+ 32. Kh2 Qf4+ 33. Kh1 Qc1+ 34. Kh2 Qf4+ 35. Kh1 Qc1+ 36. Kh2 $11) (31. Qxf8+ Kh7 $16)) 30. Be3 {[%emt 0:00:17]} a3 {[%emt 0:01:32]} 31. bxa3 {[%emt 0:08:13]} Qxa3 {[%emt 0:00:12]} 32. Qe6+ {[%emt 0:05:35]} Kh8 {[%emt 0:00:02]} 33. Qe8 {[%emt 0:00:34]} (33. Qd5 $15) 33... a5 $1 $17 {[%emt 0:01:20]} 34. Bd2 {[%emt 0:00:23][%cal Od2a5]} a4 {[%emt 0:00:27]} 35. g4 {[%emt 0:00:58]} h6 $1 {[%emt 0:00:34]} 36. h4 {[%emt 0:01:16]} Kh7 {[%emt 0:00:58][%cal Oa3d3]} 37. g5 {[%emt 0:00:24]} (37. Be3 $142) 37... fxg5 $2 {[%emt 0:01:02]} (37... Qxd3 $19 38. Qxf8 Qxd2 39. gxf6 Qc1+ 40. Kg2 Qc6+ 41. f3 Qxf6) 38. hxg5 $15 {[%emt 0:00:02]} hxg5 {[%emt 0:00:18][%cal Oa3d3]} 39. Bxg5 {[%emt 0:00:43]} Qb4 {[%emt 0:00:38] Strongly threatening ...a3.} 40. Qxe5 {[%emt 0:00:47]} (40. Be3 $142) 40... Qg4+ $17 {[%emt 0:00:34]} 41. Kh2 {[%emt 0:05:46]} a3 {[%emt 0:01:46][%cal Ba4a3,Ba3a2][%mdl 32]} 42. Bc1 {[%emt 0:00:59]} Qd7 {[%emt 0:21:11] Prevents Qd5.} ({Black should try} 42... a2 $17 {[%cal Of8d6] Hoping for ...Bd6!} 43. Bb2 Qg6) 43. Qe4+ $11 {[%emt 0:03:34]} g6 {[%emt 0:00:17] next ...Qc7+ is good for Black.} 44. Qc4 {[%emt 0:07:13] Against Qc7+} (44. Kg1 $11) 44... a2 $1 $17 {[%emt 0:04:56]} 45. Bb2 {[%emt 0:00:36]} Qa7 {[%emt 0:00:19]} 46. Qh4+ {[%emt 0:01:14]} Bh6 {[%emt 0:00:02] ( -> ...Qb8+)} 47. Ba1 {[%emt 0:05:23] [#]} Qc5 $1 {[%emt 0:00:27]} 48. Kg2 {[%emt 0:01:07] [#]} Qd5+ {[%emt 0:01:09]} (48... Qg5+ $1 $17 49. Qxg5 Bxg5) 49. Kg1 {[%emt 0:03:37]} ({White should play} 49. Qe4 $1 $15 Qxe4+ 50. dxe4) 49... Qg5+ {[%emt 0:01:14]} ({Don't take} 49... Qxd3 50. Qe7+ Kg8 51. Qe8+ Bf8 52. Qe6+ Kh7 53. Qf7+ Kh6 54. Qxf8+ $16) 50. Qxg5 {[%emt 0:00:28]} Bxg5 {[%emt 0:00:02] KB-KB} 51. Kg2 {[%emt 0:00:48]} Kg8 {[%emt 0:00:11] Threatens to win with ...Kf7.} 52. Kf3 {[%emt 0:00:06]} Bh4 {[%emt 0:01:07] ...Kf7 is the strong threat.} 53. Ke3 {[%emt 0:00:39]} Kf7 {[%emt 0:00:04]} 54. f3 {[%emt 0:02:22]} Ke6 {[%emt 0:00:05] And now ...Kd5 would win.} 55. Ke4 {[%emt 0:00:06]} Bf6 {[%emt 0:00:34]} 56. d4 {[%emt 0:00:01]} Kd6 {[%emt 0:00:24]} 57. Bb2 {[%emt 0:01:56] Black is better.} Bh4 {[%emt 0:01:47]} 58. Kd3 {[%emt 0:00:56]} Kd5 {[%emt 0:00:58]} 59. Ba1 {[%emt 0:00:11]} Bg3 {[%emt 0:01:42]} 60. Bb2 {[%emt 0:02:45] Weighted Error Value: White=0.16 (very precise) /Black=0.15 (very precise)} 1/2-1/2

[Event "FRA-ch Teams Top 16-Haute 2022"]
[Site "Chartres"]
[Date "2022.06.17"]
[Round "9.20"]
[White "Fressinet, Laurent"]
[Black "Decuigniere, Tom"]
[Result "1-0"]
[ECO "E11"]
[WhiteElo "2630"]
[BlackElo "2371"]
[Annotator "TA"]
[PlyCount "101"]
[EventDate "2022.06.16"]
[EventType "team-tourn"]
[EventCountry "FRA"]
[SourceTitle "playchess.com"]
[Source "ChessBase"]
[SourceQuality "1"]
[TimeControl "40/5400+30:1800+30"]

{[%evp 25,101,24,33,22,33,32,48,27,20,24,39,27,56,56,58,62,62,78,75,72,78,85,78,73,79,71,91,95,104,85,90,90,90,90,97,88,107,106,103,102,92,79,79,79,75,68,77,69,85,83,68,70,108,99,117,109,122,104,104,97,109,91,100,88,99,80,91,97,173,176,271,271,320,322,378,357,492,465]} 1. d4 {[%emt 0:00:33]} Nf6 {[%emt 0:00:13]} 2. Nf3 {[%emt 0:00:05]} e6 {[%emt 0:00:14]} 3. c4 {[%emt 0:00:12]} Bb4+ {[%emt 0:00:11]} 4. Bd2 {[%emt 0:00:20]} Qe7 {[%emt 0:00:09]} 5. g3 {[%emt 0:00:27]} Nc6 {[%emt 0:00:19]} 6. Nc3 {[%emt 0:00:21]} Bxc3 {[%emt 0:00:41]} 7. Bxc3 {[%emt 0:00:05]} Ne4 {[%emt 0:00:11]} 8. Rc1 {[%emt 0:00:23]} O-O {[%emt 0:00:53]} 9. Bg2 {[%emt 0:00:30]} d6 {[%emt 0:01:21]} 10. d5 {[%emt 0:01:04]} Nxc3 {[%emt 0:00:17]} 11. Rxc3 {[%emt 0:00:07]} Nb8 {[%emt 0:00:09]} 12. dxe6 {[%emt 0:00:44]} fxe6 {[%emt 0:00:07]} 13. O-O {[%emt 0:00:08]} Nd7 {[%emt 0:01:34] 13...Nc6 is not played anymore.} 14. Qd2 {[%emt 0:01:33] E11: Bogo-Indian.} Nf6 {[%emt 0:07:09]} 15. Ng5 {[%emt 0:00:36] Prevents Ne4.} c6 {[%emt 0:03:14] [#]} 16. Ne4 $146 {[%emt 0:06:23] White is slightly better.} ({Predecessor:} 16. Rd3 d5 17. Qc2 h6 18. Nf3 e5 19. cxd5 e4 20. Re3 cxd5 21. Nd4 Qe5 22. Qd2 {½-½ (47) Farago,I (2417)-Horton,A (2295) Budapest 2017}) 16... Nxe4 {[%emt 0:20:42]} 17. Bxe4 {[%emt 0:00:32]} d5 {[%emt 0:00:21]} 18. Bg2 {[%emt 0:08:58]} dxc4 {[%emt 0:02:18]} 19. Rxc4 {[%emt 0:13:38]} e5 {[%emt 0:04:17]} 20. Qe3 {[%emt 0:06:14]} Qd6 {[%emt 0:07:16]} 21. Re4 {[%emt 0:05:14]} Re8 {[%emt 0:17:00]} 22. f4 {[%emt 0:02:02][%cal Rf4e5]} Bf5 {[%emt 0:02:48]} 23. Rxe5 {[%emt 0:07:26]} Rxe5 {[%emt 0:03:27]} 24. fxe5 {[%emt 0:00:44]} Qe6 {[%emt 0:00:50]} 25. Qf4 {[%emt 0:01:36]} Bg6 {[%emt 0:03:23]} 26. Qb4 {[%emt 0:01:22]} Rb8 {[%emt 0:02:51]} 27. Qa5 {[%emt 0:12:10] White is more active.} Re8 {[%emt 0:00:24]} 28. Qxa7 {[%emt 0:01:56]} Re7 {[%emt 0:02:16]} 29. Qb8+ {[%emt 0:05:39]} Be8 {[%emt 0:00:17]} 30. a3 {[%emt 0:03:38]} (30. Be4 {looks sharper.} g6 31. Rf6 Qxe5 32. Qxe5 Rxe5 33. Bd3) 30... Qxe5 {[%emt 0:02:47]} 31. Qxe5 {[%emt 0:00:12]} Rxe5 $16 {[%emt 0:00:04][%mdl 4096] Endgame KRB-KRB} 32. Bf3 {[%emt 0:00:09]} Re3 {[%emt 0:02:56]} 33. Rd1 {[%emt 0:01:07]} Rb3 {[%emt 0:00:34]} 34. Rd2 {[%emt 0:00:21]} Kf7 {[%emt 0:04:00]} 35. Kf2 {[%emt 0:02:45]} Ke7 {[%emt 0:03:30]} 36. e4 {[%emt 0:03:27]} c5 {[%emt 0:07:06]} 37. Bd1 {[%emt 0:02:15]} Rb6 {[%emt 0:00:04]} 38. Ke3 {[%emt 0:00:06]} Bg6 {[%emt 0:02:18]} 39. Bg4 {[%emt 0:05:49]} Rb3+ {[%emt 0:01:10]} 40. Kf4 {[%emt 0:00:30]} Be8 {[%emt 0:00:09]} 41. Bd1 {[%emt 0:35:29]} Rb6 {[%emt 0:30:30]} 42. e5 {[%emt 0:00:19]} Bf7 {[%emt 0:00:00]} 43. h4 {[%emt 0:00:00]} h6 {[%emt 0:00:00]} 44. g4 {[%emt 0:00:00]} c4 {[%emt 0:00:00]} 45. Ke4 {[%emt 0:00:00]} Ra6 {[%emt 0:00:00]} 46. Kd4 {[%emt 0:00:00]} Ra8 {[%emt 0:00:00]} (46... Ra5 $16) 47. Bf3 $18 {[%emt 0:00:00]} Rb8 {[%emt 0:00:00] [#]} (47... Ra7 $142 48. g5 hxg5) 48. Kc3 $1 {[%emt 0:00:00]} Be6 {[%emt 0:00:00]} 49. Rd6 {[%emt 0:00:00]} b5 {[%emt 0:00:00]} 50. Bd5 {[%emt 0:00:00]} Bd7 {[%emt 0:00:00]} 51. Ra6 {[%emt 0:00:00] Weighted Error Value: White=0.05 (flawless) /Black=0.16 (very precise)} 1-0